bitfinex-derivatives/quotes_ETHF0:USTF0_20250906
["timestamp","ask_amount","ask_price","bid_price","bid_amount"]
[1757183583752,0.8249,4273.4,4273.3,0.23917333]
[1757183586146,0.8249,4273.4,4273.3,0.00417333]
[1757183586345,0.302,4273.3,4273.1,3.2078]
[1757183586545,0.708,4273.2,4273.1,3.2078]
[1757183587449,1.31900518,4273.2,4273.0,0.235]
[1757183587648,1.31900518,4273.1,4273.0,0.235]
[1757183588152,0.708,4273.1,4273.0,0.235]
[1757183588544,1.31880016,4273.1,4273.0,0.235]
[1757183590246,0.708,4273.1,4273.0,0.235]
[1757183592451,0.4982,4273.1,4273.0,0.2426]
[1757183592654,0.708,4273.1,4273.0,0.235]
[1757183593046,0.8249,4273.1,4273.0,0.235]
[1757183595555,0.8249,4273.1,4273.0,0.2388]
[1757183595760,0.8249,4273.1,4273.0,0.2426]
[1757183597062,0.6151,4273.1,4273.0,0.2426]
[1757183597653,0.4189,4273.1,4273.0,0.245]
[1757183601957,0.4189,4273.1,4273.0,0.2426]
[1757183602261,0.4189,4273.1,4273.0,0.4426]
[1757183603263,0.6204,4273.1,4273.0,0.4426]
[1757183604062,0.4189,4273.1,4273.0,0.4426]
[1757183606563,0.8319,4273.1,4273.0,0.4388]
[1757183607564,0.6204,4273.1,4273.0,0.4388]
[1757183607763,0.4189,4273.1,4273.0,0.4388]
[1757183608170,0.6204,4273.1,4273.0,0.4388]
[1757183608767,0.4189,4273.1,4273.0,4.4388]
[1757183610370,0.1169,4273.1,4273.0,4.4388]
[1757183610568,0.4246,4273.1,4273.0,4.4388]
[1757183617472,3.2078,4274.7,4273.1,0.3098]
[1757183617673,0.61264069,4274.4,4273.6,3.6023]
[1757183617977,0.2015,4273.7,4273.6,3.6023]
[1757183618175,0.2015,4273.7,4273.6,4.1471]
[1757183619486,0.5092,4273.7,4273.6,4.1471]
[1757183622189,3.2078,4274.7,4273.6,3.8373]
[1757183622387,0.7207,4274.3,4274.2,0.1989]
[1757183622687,0.7207,4274.3,4274.2,0.7437]
[1757183625192,0.7207,4274.3,4274.2,0.235]
[1757183626179,1.33371863,4274.3,4274.2,0.235]
[1757183636598,0.4008,4273.7,4273.6,3.2078]
[1757183636898,0.7038,4273.3,4273.2,0.5019]
[1757183637109,0.7038,4273.3,4273.1,3.2078]
[1757183637110,0.303,4273.2,4273.1,3.2078]
[1757183637400,0.7038,4273.2,4273.1,3.2078]
[1757183638299,0.7038,4273.2,4273.0,0.2]
[1757183639002,1.31676282,4273.1,4273.0,0.2]
[1757183639505,5.31676282,4273.1,4273.0,0.2]
[1757183639699,5.31676282,4273.1,4272.8,0.17786723]
[1757183639902,0.7038,4272.9,4272.8,0.17786723]
[1757183640304,0.7038,4272.9,4272.8,0.47696723]
[1757183640799,0.7038,4272.9,4272.8,0.17786723]
[1757183641000,4.7038,4272.9,4272.8,0.17786723]
[1757183641707,4.7038,4272.9,4272.0,3.3238]
[1757183642008,0.548,4272.1,4272.0,3.6229]
[1757183642507,0.1998,4272.1,4272.0,4.029]
[1757183642900,0.4008,4272.1,4272.0,4.029]
[1757183643307,0.548,4272.1,4272.0,4.029]
[1757183643506,0.548,4272.1,4272.0,3.8257]
[1757183644113,0.4008,4272.1,4272.0,4.029]
[1757183645197,0.1998,4272.6,4272.5,0.8212]
[1757183646003,0.4008,4272.6,4272.5,0.8212]
[1757183649808,0.4008,4272.6,4272.5,0.6179]
[1757183650012,0.548,4272.6,4272.5,0.4151]
[1757183650715,0.4008,4272.1,4272.0,3.5266]
[1757183650906,0.4008,4272.1,4272.0,3.7299]
[1757183651216,0.4008,4272.1,4272.0,4.029]
[1757183651415,0.1998,4272.1,4272.0,4.029]
[1757183651611,0.1472,4272.0,4271.4,0.2991]
[1757183651808,0.548,4271.5,4271.4,0.2991]
[1757183652004,0.4008,4271.2,4271.1,0.5019]
[1757183652310,0.1998,4271.2,4271.1,0.7052]
[1757183652512,0.237,4271.5,4271.2,0.2991]
[1757183652715,0.6378,4271.5,4271.4,0.7052]
[1757183654405,0.1998,4271.5,4271.4,0.7052]
[1757183654601,3.2078,4272.0,4271.9,0.7052]
[1757183655207,3.4076,4272.0,4271.9,0.7052]
[1757183657417,0.237,4272.4,4272.3,0.4061]
[1757183657718,3.4076,4272.5,4272.4,0.7052]
[1757183659210,3.6086,4272.5,4272.4,0.7052]
[1757183659818,3.2078,4272.5,4272.4,0.7052]
[1757183660717,0.237,4272.9,4272.4,0.7052]
[1757183660919,0.2102,4272.6,4272.5,0.8328]
[1757183664419,0.558,4272.6,4272.5,0.2926]
[1757183665217,0.558,4272.6,4272.5,0.6184]
[1757183665424,0.4107,4272.6,4272.5,0.6184]
[1757183668122,0.2102,4272.6,4272.5,0.8328]
[1757183668720,3.4448,4273.0,4272.5,0.5402]
[1757183668915,1.02457054,4272.9,4272.8,0.705]
[1757183677632,1.06107054,4272.9,4272.8,0.705]
[1757183678329,0.61387054,4272.9,4272.8,0.705]
[1757183678525,0.61387054,4272.9,4272.5,0.1278]
[1757183678526,0.4472,4273.4,4273.3,0.4124]
[1757183678731,1.06132068,4273.4,4273.3,0.705]
[1757183680835,0.82432068,4273.4,4273.3,0.705]
[1757183684344,1.17202068,4273.4,4273.3,0.2926]
[1757183686338,1.17202068,4273.4,4273.0,0.1278]
[1757183686540,3.4448,4273.5,4273.0,0.2926]
[1757183686541,0.5579,4273.1,4273.0,0.2926]
[1757183686741,1.17202068,4273.1,4273.0,0.4204]
[1757183686941,1.17202068,4273.1,4273.0,0.6184]
[1757183687539,0.1472,4273.0,4272.7,0.2926]
[1757183687842,0.5579,4272.8,4272.7,0.2926]
[1757183688043,1.40902068,4272.8,4272.7,0.2926]
[1757183689658,0.82432068,4272.8,4272.7,0.7049]
[1757183691062,1.18592068,4272.8,4272.7,0.7049]
[1757183691858,1.03752068,4272.8,4272.7,0.7049]
[1757183692666,1.18592068,4272.8,4272.7,0.7049]
[1757183694169,1.03752068,4272.8,4272.7,0.7049]
[1757183706378,1.18592068,4272.8,4272.7,0.7049]
[1757183707879,1.18592068,4272.8,4272.7,0.5026]
[1757183710182,1.03752068,4272.8,4272.7,0.5026]
[1757183710581,1.03752068,4272.8,4272.7,0.7049]
[1757183713381,0.82432068,4272.8,4272.7,0.7049]
[1757183715888,0.61412068,4272.8,4272.7,0.7049]
[1757183716190,0.61412068,4273.1,4272.7,0.7332]
[1757183716386,1.02552068,4273.1,4273.0,0.6595]
[1757183716884,0.61412068,4273.1,4273.0,0.8618]
[1757183717089,1.25861414,4273.9,4273.7,0.3209]
[1757183717391,0.1982,4274.3,4274.2,0.7332]
[1757183717591,0.61644954,4274.3,4274.2,0.7332]
[1757183717887,0.81464954,4274.3,4274.2,0.7332]
[1757183719491,1.02934954,4274.3,4274.2,0.7332]
[1757183719891,1.17624954,4274.3,4274.2,0.5309]
[1757183720087,0.85040954,4274.3,4273.6,0.2972]
[1757183720391,0.85040954,4274.3,4273.6,0.4963]
[1757183720392,0.4198,4273.7,4273.6,0.4963]
[1757183720581,0.5667,4273.7,4273.6,0.4963]
[1757183720980,0.5667,4273.7,4273.6,0.2972]
[1757183724196,0.5667,4273.7,4273.6,0.4963]
[1757183724700,0.5667,4273.7,4273.6,0.2972]
[1757183725196,0.5667,4273.7,4273.6,0.4963]
[1757183725395,0.5667,4273.7,4273.6,0.2972]
[1757183725598,0.5668,4273.4,4273.0,0.1286]
[1757183725899,0.5668,4272.9,4272.6,0.2972]
[1757183726193,0.5668,4272.9,4272.8,0.1991]
[1757183726499,0.5668,4272.9,4272.8,0.4963]
[1757183727300,0.5668,4272.9,4272.8,0.2972]
[1757183728401,1.18131214,4272.9,4272.8,0.2972]
[1757183728597,1.18131214,4272.9,4272.8,0.4963]
[1757183728903,1.03431214,4272.9,4272.8,0.703]
[1757183737210,0.61451214,4272.9,4272.8,0.703]
[1757183738412,0.236,4273.0,4272.8,0.703]
[1757183738613,0.4411,4273.0,4272.9,0.703]
[1757183738913,1.05560862,4273.0,4272.9,0.703]
[1757183743913,0.81960862,4273.0,4272.9,0.703]
[1757183744118,0.61450862,4273.0,4272.9,0.703]
[1757183744512,0.61457538,4273.1,4273.0,0.1186]
[1757183744813,0.81967547,4273.1,4273.0,0.5244]
[1757183745010,1.03437547,4273.1,4273.0,0.5244]
[1757183745210,1.18167547,4273.1,4273.0,0.4158]
[1757183746018,1.03437547,4273.1,4273.0,0.8216]
[1757183749719,0.81967547,4273.1,4273.0,0.8216]
[1757183750320,0.61457547,4273.1,4273.0,0.8216]
[1757183751424,0.80817547,4273.1,4273.0,0.8216]
[1757183751615,1.16497547,4273.1,4273.0,0.8216]
[1757183752120,1.01787547,4273.1,4273.0,0.8216]
[1757183753522,1.16497547,4273.1,4273.0,0.4158]
[1757183753823,1.16497547,4273.1,4273.0,0.2972]
[1757183758331,1.01787547,4273.1,4273.0,0.6283]
[1757183758627,1.01787547,4273.1,4273.0,0.8388]
[1757183759629,0.61457547,4273.1,4273.0,0.8388]
[1757183760225,0.80817547,4273.1,4273.0,0.8388]
[1757183760430,0.61457547,4273.1,4273.0,0.8388]
[1757183762228,0.61457547,4273.1,4273.0,5.07281999]
[1757183762532,3.5161,4273.8,4273.0,5.07281999]
[1757183762731,3.9194,4273.8,4273.7,0.5002]
[1757183764630,3.9194,4273.8,4273.0,0.1282]
[1757183764839,0.7116,4273.1,4273.0,0.5002]
[1757183765135,0.7116,4273.1,4273.0,0.7107]
[1757183765333,0.7116,4273.1,4273.0,0.8389]
[1757183765533,0.7116,4273.1,4273.0,0.7107]
[1757183766129,0.7116,4273.1,4273.0,0.8389]
[1757183766830,0.1936,4273.1,4273.0,0.8389]
[1757183767441,0.7116,4273.1,4273.0,0.8389]
[1757183768437,0.7116,4273.1,4273.0,0.7107]
[1757183769545,0.4033,4272.9,4272.8,0.2973]
[1757183769736,0.7116,4272.9,4272.8,0.2973]
[1757183769941,0.7116,4272.9,4272.8,0.5002]
[1757183770945,0.7116,4272.9,4272.6,0.2973]
[1757183771538,0.7116,4272.9,4272.8,0.5002]
[1757183774448,1.32753899,4272.9,4272.8,0.5002]
[1757183775447,1.32753899,4272.9,4272.2,3.2078]
[1757183775649,0.7116,4272.3,4272.2,3.708]
[1757183776046,1.32748093,4272.3,4272.2,3.708]
[1757183776443,1.32739147,4272.3,4272.2,0.5002]
[1757183776648,1.32739147,4272.3,4272.2,0.2973]
[1757183777844,1.32739147,4272.3,4272.2,0.5002]
[1757183782950,1.32739147,4272.3,4271.6,3.2078]
[1757183782951,0.1949,4271.7,4271.6,3.9278]
[1757183783754,0.9308,4272.2,4272.1,0.2007]
[1757183783945,1.54657803,4272.2,4272.1,0.5214]
[1757183785455,1.54657803,4272.2,4272.1,0.3207]
[1757183786356,1.54657803,4272.2,4272.1,0.72]
[1757183787056,0.61577803,4272.2,4272.1,0.72]
[1757183787253,0.236,4272.4,4272.1,0.3993]
[1757183787555,3.2078,4272.6,4272.5,0.8449]
[1757183787854,3.82322817,4272.6,4272.5,0.8449]
[1757183788952,4.01812817,4272.6,4272.5,0.8449]
[1757183789353,0.81032817,4272.6,4272.5,0.8449]
[1757183790457,1.31022817,4272.6,4272.5,0.8449]
[1757183790956,0.81032817,4272.6,4272.5,0.8449]
[1757183791151,0.61542817,4272.6,4272.5,0.8449]
[1757183791651,3.2078,4273.2,4273.0,0.3207]
[1757183791953,0.61535408,4273.1,4273.0,0.8449]
[1757183792757,0.81025408,4273.1,4273.0,0.8449]
[1757183793760,0.61535408,4273.1,4273.0,4.8449]
[1757183793955,3.4027,4273.7,4273.6,0.72]
[1757183794163,4.01835608,4273.7,4273.6,0.72]
[1757183794361,3.82345608,4273.7,4273.6,0.72]
[1757183794660,0.5413,4274.3,4273.6,0.72]
[1757183794860,0.61573538,4274.2,4274.0,0.1249]
[1757183795056,3.2078,4274.4,4274.1,0.72]
[1757183795261,0.61572608,4274.3,4274.2,0.3207]
[1757183795464,0.81062608,4274.3,4274.2,0.72]
[1757183795759,1.31052608,4274.3,4274.2,0.72]
[1757183801568,3.2078,4274.4,4274.2,0.3993]
[1757183801765,3.2078,4274.4,4274.3,0.72]
[1757183801971,3.9026,4274.4,4274.3,0.72]
[1757183803074,1.25861414,4275.4,4274.3,0.72]
[1757183803075,3.9026,4275.5,4275.4,0.5214]
[1757183803271,4.51655926,4275.5,4275.4,0.5214]
[1757183804370,3.9026,4275.5,4275.4,0.5214]
[1757183805173,0.1949,4275.5,4275.4,0.72]
[1757183805473,0.236,4275.7,4275.5,0.4456]
[1757183805674,0.4309,4275.7,4275.6,0.72]
[1757183805875,0.9308,4275.7,4275.6,0.72]
[1757183806976,0.6948,4275.7,4275.6,0.72]
[1757183808475,0.3895,4275.7,4275.6,0.72]
[1757183808677,0.1949,4275.7,4275.6,0.72]
[1757183808874,0.6948,4275.7,4275.6,0.72]
[1757183810377,0.6948,4275.7,4275.2,3.2078]
[1757183810576,0.6937,4274.8,4274.7,0.2996]
[1757183810984,0.4004,4274.8,4274.2,0.2996]
[1757183811290,0.2059,4274.3,4274.2,0.6998]
[1757183814592,0.0969,4275.0,4274.2,0.9368]
[1757183814792,0.6937,4274.9,4274.8,0.2039]
[1757183815187,0.6937,4274.9,4274.8,0.5035]
[1757183816786,0.6937,4274.9,4274.2,0.237]
[1757183816787,0.2933,4274.8,4274.2,0.2996]
[1757183816990,0.2933,4274.8,4273.5,3.328]
[1757183816991,0.2933,4274.1,4273.5,3.328]
[1757183817291,0.2059,4273.7,4273.6,0.9368]
[1757183818789,0.6937,4273.7,4273.6,0.6998]
[1757183820586,0.4004,4273.7,4273.6,0.6998]
[1757183821389,0.6937,4273.7,4273.6,0.6998]
[1757183822389,0.4004,4273.7,4273.6,0.6998]
[1757183824898,0.6937,4273.7,4273.6,0.6998]
[1757183825999,0.6937,4273.7,4273.6,0.5035]
[1757183826195,1.30913099,4273.7,4273.0,3.328]
[1757183826397,0.90864744,4273.6,4273.1,0.2996]
[1757183826702,0.6937,4273.2,4273.1,0.6998]
[1757183832005,0.6937,4273.7,4273.6,0.5035]
[1757183832197,1.30848868,4273.7,4273.6,0.5035]
[1757183832398,1.42538868,4273.7,4273.6,0.5035]
[1757183837509,1.42538868,4273.7,4273.6,0.6998]
[1757183842207,1.42538868,4273.7,4273.6,0.5035]
[1757183847914,1.42538868,4273.7,4273.1,0.3031]
[1757183848115,0.5149,4273.2,4273.1,0.7189]
[1757183848307,1.33318868,4273.2,4273.1,0.7189]
[1757183853017,0.82578868,4273.2,4273.1,0.7189]
[1757183854019,0.61478868,4273.2,4273.1,0.7189]
[1757183854221,0.61478868,4273.5,4273.1,0.4158]
[1757183854518,0.82578868,4273.5,4273.4,0.4158]
[1757183854724,1.12968868,4273.5,4273.4,0.7189]
[1757183855017,1.33318868,4273.5,4273.4,0.7189]
[1757183855423,1.33318868,4273.5,4273.4,0.3031]
[1757183855618,1.33318868,4273.5,4273.0,0.3562]
[1757183855922,0.236,4273.7,4273.1,0.4158]
[1757183855923,0.7184,4273.2,4273.1,0.4158]
[1757183856124,1.33318868,4273.2,4273.1,0.4158]
[1757183856325,1.33318868,4273.2,4273.1,0.7189]
[1757183856623,1.45008868,4273.2,4273.1,0.7189]
[1757183857923,1.14618868,4273.2,4273.1,0.7189]
[1757183860325,0.94268868,4273.2,4273.1,0.7189]
[1757183860525,0.73168868,4273.2,4273.1,0.7189]
[1757183863527,0.73168868,4273.2,4273.1,3.9267]
[1757183868441,0.1169,4273.2,4273.1,3.9267]
[1757183868743,0.5314,4273.2,4272.6,3.2078]
[1757183868939,0.3973,4272.7,4272.6,3.2078]
[1757183869141,1.33763526,4272.7,4272.6,3.2078]
[1757183870139,1.33763526,4272.7,4272.0,0.3562]
[1757183870342,0.1965,4272.2,4272.1,0.7174]
[1757183870842,0.5186,4272.2,4272.1,0.7174]
[1757183872046,0.7194,4272.2,4272.1,0.7174]
[1757183873650,0.91465361,4272.2,4272.1,0.7174]
[1757183876347,0.59255361,4272.2,4272.1,0.7174]
[1757183876651,0.39175361,4272.2,4272.1,0.7174]
[1757183876852,0.19525361,4272.2,4272.1,0.7174]
[1757183877252,3.4148,4273.2,4273.1,0.4109]
[1757183877253,3.9272,4273.2,4273.1,0.4109]
[1757183877454,4.73936312,4273.2,4273.1,0.3065]
[1757183877641,4.85626312,4273.2,4272.7,0.3065]
[1757183877846,0.3973,4272.8,4272.7,0.4109]
[1757183878047,0.81216312,4272.8,4272.7,0.7174]
[1757183878447,1.00866312,4272.8,4272.7,0.7174]
[1757183878750,1.33076312,4272.8,4272.7,0.7174]
[1757183879455,0.39165256,4272.8,4272.7,0.7174]
[1757183880457,0.1965,4272.8,4272.7,0.7174]
[1757183880647,0.39163107,4272.8,4272.7,0.7174]
[1757183882456,0.1169,4273.2,4273.1,0.4109]
[1757183882659,0.1169,4273.2,4273.1,0.9534]
[1757183883845,0.1169,4273.2,4273.1,4.1612]
[1757183884049,0.3134,4273.2,4273.1,4.1612]
[1757183884251,0.6355,4273.2,4273.1,4.1612]
[1757183886661,0.8363,4273.2,4273.1,4.1612]
[1757183890460,0.6355,4273.2,4273.1,4.1612]
[1757183890660,0.1169,4273.2,4273.1,4.1612]
[1757183892759,3.2078,4273.8,4273.7,0.4109]
[1757183892959,3.2078,4273.8,4273.7,0.9534]
[1757183894553,0.3221,4274.0,4273.7,0.6469]
[1757183894754,0.3221,4274.0,4273.9,0.7174]
[1757183894955,0.93840397,4274.0,4273.9,0.7174]
[1757183895561,0.3221,4274.0,4273.9,0.7174]
[1757183896459,0.8436,4274.5,4274.4,0.7174]
[1757183896660,1.45963372,4274.5,4274.4,0.7174]
[1757183900465,1.45963372,4274.5,4274.4,0.2017]
[1757183906072,1.45908489,4274.5,4274.4,0.2017]
[1757183907470,1.45908489,4274.5,4274.2,0.3176]
[1757183907773,0.7071,4274.3,4274.2,0.5214]
[1757183908071,1.32258489,4274.3,4274.2,0.5214]
[1757183912575,1.32258489,4274.3,4274.2,0.2038]
[1757183916881,1.32258489,4274.3,4274.2,0.5214]
[1757183923485,1.32258489,4274.3,4274.2,0.2038]
[1757183928588,1.32258489,4274.3,4274.1,0.236]
[1757183928786,1.32258489,4274.2,4274.1,0.236]
[1757183930590,1.01808489,4274.2,4274.1,0.236]
[1757183930786,1.34008489,4274.2,4274.1,0.236]
[1757183932589,1.34008489,4274.2,4274.1,0.4346]
[1757183939599,1.34008489,4274.2,4274.1,0.1986]
[1757183939886,1.34008489,4274.2,4274.1,0.4346]
[1757183941095,1.34008489,4274.2,4274.1,0.9636]
[1757183943597,0.7251,4273.9,4273.8,0.236]
[1757183943798,1.34058489,4273.9,4273.8,0.236]
[1757183944097,1.34058489,4273.9,4273.8,0.4346]
[1757183944798,1.34058489,4273.9,4273.8,0.9636]
[1757183945002,1.34058489,4273.9,4273.8,4.1714]
[1757183953903,1.14648489,4273.9,4273.8,4.1714]
[1757183954108,0.61548489,4273.9,4273.8,4.1714]
[1757183954298,0.1242,4274.5,4273.8,8.08868]
[1757183954299,0.322,4274.5,4273.8,8.08868]
[1757183954495,0.61726677,4274.4,4274.3,0.4109]
[1757183954699,0.61726677,4274.4,4274.3,0.9636]
[1757183954700,1.14826677,4274.4,4274.3,0.9636]
[1757183957306,0.61726677,4274.4,4274.3,0.9636]
[1757183957507,0.7251,4274.4,4274.3,3.9354]
[1757183957708,0.7251,4274.4,4274.3,4.1714]
[1757183961712,0.7251,4274.4,4274.3,3.9354]
[1757183961912,0.7251,4274.4,4274.3,4.1704]
[1757183968108,0.531,4274.4,4274.3,4.1704]
[1757183971027,0.2942,4274.9,4274.4,0.3153]
[1757183971214,0.7037,4274.9,4274.8,0.7281]
[1757183971407,1.31902813,4274.9,4274.8,0.9631]
[1757183971615,0.7037,4274.9,4274.8,0.9631]
[1757183971810,0.4971,4274.9,4274.8,0.9631]
[1757183972716,0.4971,4275.7,4275.6,0.2138]
[1757183973017,0.4971,4275.7,4274.9,0.3153]
[1757183973018,0.7037,4274.9,4274.8,3.7369]
[1757183973314,0.7037,4274.9,4274.8,3.9729]
[1757183975014,0.7037,4274.9,4274.8,4.1719]
[1757183976015,0.4971,4274.9,4274.8,4.1719]
[1757183981318,0.4971,4274.9,4274.8,3.9359]
[1757183981520,0.4971,4274.9,4274.8,4.1719]
[1757183984036,0.2942,4274.9,4274.8,4.1719]
[1757183984220,0.124,4275.5,4274.8,4.1719]
[1757183984533,1.02489945,4275.4,4275.3,0.5291]
[1757183984824,1.02489945,4275.4,4275.3,0.7651]
[1757183985023,1.31909945,4275.4,4275.3,0.7651]
[1757183985522,1.31909945,4275.4,4275.3,0.9641]
[1757183985831,0.90959945,4275.4,4275.3,0.9641]
[1757183986722,0.2942,4275.7,4275.3,0.6488]
[1757183986918,0.4971,4275.7,4275.6,0.7281]
[1757183987114,1.11259464,4275.7,4275.6,0.9641]
[1757183989026,1.31919464,4275.7,4275.6,0.9641]
[1757183994219,0.4044,4275.4,4275.3,3.2078]
[1757183994434,0.7175,4275.4,4275.3,0.235]
[1757183996132,0.5098,4275.4,4275.3,0.9697]
[1757183998631,0.7175,4275.4,4275.3,0.9697]
[1757183999830,0.5098,4275.4,4275.3,0.9697]
[1757184000238,0.7175,4275.4,4275.3,0.9697]
[1757184002337,1.33353659,4275.4,4275.3,0.9697]
[1757184004757,0.5098,4275.4,4275.3,0.9697]
[1757184005659,0.7175,4275.4,4275.3,0.9697]
[1757184008553,1.33359958,4275.4,4275.3,0.9697]
[1757184010457,1.33359958,4275.4,4275.3,0.235]
[1757184012764,1.12589958,4275.4,4275.3,0.9697]
[1757184013458,1.33359958,4275.4,4275.3,0.9697]
[1757184014366,1.12589958,4275.4,4275.3,0.9697]
[1757184015967,1.33359958,4275.4,4275.3,0.9697]
[1757184018060,1.33359958,4275.4,4275.3,0.6513]
[1757184018366,1.33359958,4275.4,4275.3,0.9697]
[1757184018960,1.33359958,4275.4,4275.3,0.6513]
[1757184019262,1.33359958,4275.4,4275.3,0.4435]
[1757184020270,1.12589958,4275.4,4275.3,0.9523]
[1757184021662,0.2936,4276.0,4275.3,1.1862]
[1757184021867,0.90952261,4275.9,4275.8,0.7094]
[1757184022068,1.10572261,4275.9,4275.8,0.9444]
[1757184028657,1.29952261,4275.9,4275.8,0.9444]
[1757184029964,0.90952261,4275.9,4275.8,0.9444]
[1757184030164,0.61592261,4275.9,4275.8,0.9444]
[1757184030566,1.10572261,4275.9,4275.8,0.9444]
[1757184031274,1.29952261,4275.9,4275.8,0.9444]
[1757184031776,1.10572261,4275.9,4275.8,0.9444]
[1757184032073,0.6836,4276.4,4276.3,0.7094]
[1757184032268,1.29890297,4276.4,4276.3,0.9444]
[1757184032472,1.29890297,4276.4,4276.3,0.235]
[1757184034077,0.1261,4276.0,4275.7,3.2078]
[1757184034278,1.29871274,4275.9,4275.8,0.235]
[1757184034570,0.6836,4275.8,4275.7,3.2078]
[1757184034774,0.6836,4275.7,4275.6,0.235]
[1757184034974,1.29871274,4275.7,4275.6,0.235]
[1757184036778,1.29871274,4275.7,4274.9,0.2999]
[1757184036975,0.8097,4275.0,4274.9,0.5005]
[1757184037175,0.2936,4274.4,4274.3,36.8968]
[1757184037375,0.2936,4274.4,4274.3,37.1318]
[1757184037771,0.2936,4274.4,4274.3,36.8968]
[1757184037971,0.2936,4274.4,4274.3,37.1318]
[1757184038672,0.2936,4274.4,4274.3,37.4317]
[1757184043376,0.5161,4275.0,4274.9,0.7094]
[1757184043679,1.13031523,4275.0,4274.9,0.7094]
[1757184043880,1.42391523,4275.0,4274.9,0.7094]
[1757184044080,1.42391523,4275.0,4274.9,0.2006]
[1757184044986,0.8097,4275.0,4274.9,0.2006]
[1757184048884,0.8097,4275.0,4274.8,0.235]
[1757184049287,0.8097,4275.0,4274.9,0.2039]
[1757184049990,0.8097,4275.0,4274.8,0.235]
[1757184051584,0.8623,4274.0,4273.9,0.2039]
[1757184051785,0.8623,4274.0,4273.9,0.4389]
[1757184053685,0.8623,4274.0,4273.9,0.6472]
[1757184053887,0.3141,4274.0,4273.9,0.9386]
[1757184054081,0.5251,4274.0,4273.9,0.9386]
[1757184054389,0.7375,4274.0,4273.9,0.9386]
[1757184056186,0.1248,4274.5,4273.9,0.9386]
[1757184056388,0.8623,4274.5,4274.4,0.2039]
[1757184058096,0.8623,4274.5,4274.4,0.7036]
[1757184058593,0.8623,4274.5,4274.4,0.2039]
[1757184058793,0.8623,4274.5,4274.3,0.235]
[1757184066297,0.61380829,4274.4,4274.3,0.235]
[1757184066691,1.35130829,4274.4,4274.3,0.235]
[1757184069398,0.8623,4274.0,4273.8,3.2078]
[1757184069591,0.3141,4273.9,4273.8,3.4428]
[1757184069792,0.7375,4273.9,4273.8,3.4428]
[1757184070292,0.7375,4273.9,4273.8,4.1464]
[1757184070897,0.7375,4273.9,4273.8,3.4428]
[1757184071296,0.7375,4273.9,4273.8,3.6467]
[1757184071997,0.7375,4273.9,4273.8,3.9381]
[1757184072609,0.7375,4273.9,4273.8,3.7031]
[1757184072900,0.7375,4273.9,4273.8,3.9381]
[1757184073698,0.5482,4274.5,4274.4,0.2039]
[1757184073910,0.8623,4274.5,4274.4,0.4953]
[1757184074202,1.47615415,4274.5,4274.4,0.4953]
[1757184075002,1.47615415,4274.5,4274.4,0.7036]
[1757184082997,1.47615415,4274.5,4274.4,0.4122]
[1757184083505,0.8623,4274.5,4274.4,0.4122]
[1757184083698,1.47744342,4274.5,4274.4,0.4122]
[1757184084606,1.47744342,4274.5,4274.4,0.7186]
[1757184085895,1.47744342,4274.5,4274.4,0.4122]
[1757184086101,1.47744342,4274.5,4274.4,0.2039]
[1757184087010,0.4164,4273.9,4273.8,4.1659]
[1757184087308,0.7119,4273.9,4273.8,4.1659]
[1757184087508,0.7119,4273.9,4273.8,4.39988]
[1757184087704,0.7119,4273.9,4273.8,4.1659]
[1757184089007,0.1248,4274.5,4273.9,0.3064]
[1757184089307,1.32707275,4274.4,4274.3,0.5135]
[1757184091508,1.03157275,4274.4,4274.1,0.235]
[1757184091704,0.4164,4274.2,4273.9,3.2078]
[1757184092002,0.835,4274.0,4273.9,3.4149]
[1757184092210,1.45017275,4274.0,4273.9,3.6499]
[1757184092411,1.45017275,4274.0,4273.9,3.9563]
[1757184093013,1.45017275,4274.0,4273.9,3.6499]
[1757184093204,1.45017275,4274.0,4273.9,4.1659]
[1757184096114,1.32707275,4274.0,4273.9,4.1659]
[1757184097516,1.32707275,4274.0,4273.9,0.9581]
[1757184097906,1.11307275,4274.0,4273.9,0.9581]
[1757184098107,0.91067275,4274.0,4273.9,0.9581]
[1757184098316,1.11307275,4274.0,4273.9,0.9581]
[1757184098509,1.32707275,4274.0,4273.9,0.9581]
[1757184099114,1.45017275,4274.0,4273.9,0.9581]
[1757184099811,1.45017275,4274.0,4273.9,0.4421]
[1757184100214,1.45017275,4274.0,4273.6,0.3064]
[1757184100516,0.835,4274.0,4273.7,0.5414]
[1757184100714,0.7119,4273.8,4273.7,0.9581]
[1757184102016,0.1248,4274.5,4273.8,0.3064]
[1757184102210,0.91087845,4274.4,4273.8,0.3064]
[1757184102409,1.32727845,4274.3,4274.2,0.2071]
[1757184103320,1.32727845,4274.3,4273.9,0.3064]
[1757184103514,0.7119,4274.0,4273.9,0.7231]
[1757184103712,1.32727845,4274.0,4273.9,0.7231]
[1757184104114,1.45037845,4274.0,4273.9,0.7231]
[1757184104310,1.45037845,4274.0,4273.9,0.4167]
[1757184104717,1.45037845,4274.0,4273.9,0.2071]
[1757184106223,1.45037845,4274.0,4273.9,0.5135]
[1757184107219,1.45037845,4274.0,4273.9,0.2071]
[1757184107419,1.45037845,4274.0,4273.9,0.235]
[1757184108318,1.45037845,4274.0,4273.7,0.235]
[1757184108520,0.835,4274.0,4273.7,0.235]
[1757184109128,0.835,4274.0,4273.6,0.235]
[1757184109319,0.5395,4274.0,4273.6,0.5395]
[1757184109519,0.4082,4273.7,4273.6,0.6468]
[1757184109724,0.706,4273.7,4273.6,0.9513]
[1757184111534,0.5021,4273.7,4273.6,0.9513]
[1757184111721,0.2978,4273.7,4273.6,0.9513]
[1757184114834,0.1231,4274.0,4273.6,0.9513]